[Event "8th Mersin Open 2024"]
[Site "Mersin"]
[Date "2024.11.13"]
[Round "5"]
[White "Topuz, Mirac Melih"]
[Black "Yildiz, Serdar Murat"]
[Result "1-0"]
[ECO "B48"]
[WhiteElo "2097"]
[BlackElo "2201"]
[Annotator "RC"]
[PlyCount "77"]
[EventDate "2024.11.10"]
[EventType "swiss"]
[EventCountry "TUR"]
[SourceTitle "playchess.com"]
[Source "ChessBase"]
[SourceQuality "1"]
[TimeControl "5400+30"]

1. e4 c5 2. Nf3 e6 3. d4 cxd4 4. Nxd4 Nc6 5. Nc3 Qc7 6. Be3 a6 7. g4 Nxd4 8. Qxd4 b5 9. O-O-O Bb7 10. Rg1 Rc8 11. Kb1 b4 12. Ne2 Qxc2+ 13. Ka1 Nf6 14. Rc1 Qxe4 15. Qa7 Ra8 16. Qb6 Bd5 17. g5 Nh5 18. Bg2 Qe5 19. Bxd5 Qxd5 20. Rgd1 Qb5 21. Qc7 d5 22. Nf4 Nxf4 23. Qxf4 Qd7 24. Qd4 Rg8 25. Bf4 Bd6 26. Rc2 Rd8 27. Bxd6 Qxd6 28. Rdc1 e5 29. Qa7 d4 30. Rc6 Qe7 31. Rc7 Qe6 32. R1c6 Qd5 33. Rc5 Qh1+ 34. Rc1 Qd5 35. f4 d3 36. Re7+ Kf8 37. Rxe5 Qd6 38. Rc7 Qg6 39. Rxf7+ 1-0

[Event "8th Mersin Open 2024"]
[Site "Mersin"]
[Date "2024.11.13"]
[Round "5"]
[White "Pourramezan chafjiri, Parsa"]
[Black "Dogan, Nazmi Can"]
[Result "1/2-1/2"]
[ECO "C41"]
[WhiteElo "2081"]
[BlackElo "2218"]
[Annotator "RC"]
[PlyCount "43"]
[EventDate "2024.11.10"]
[EventType "swiss"]
[EventCountry "TUR"]
[SourceTitle "playchess.com"]
[Source "ChessBase"]
[SourceQuality "1"]
[TimeControl "5400+30"]

1. e4 {[%emt 0:01:00]} d6 {[%emt 0:01:00]} 2. d4 {[%emt 0:00:00]} Nf6 {[%emt 0:00:30]} 3. Nc3 {[%emt 0:00:00]} e5 {[%emt 0:00:00]} 4. Nf3 {[%emt 0:00:30]} Nbd7 {[%emt 0:00:00]} 5. g4 {[%emt 0:00:30]} Nxg4 {[%emt 0:01:30]} 6. Rg1 {[%emt 0:00:30]} Ngf6 {[%emt 0:00:30]} 7. Bc4 {[%emt 0:01:30]} exd4 {[%emt 0:02:30]} 8. Qxd4 {[%emt 0:01:30]} c6 {[%emt 0:00:30]} 9. a4 {[%emt 0:03:30]} Qb6 {[%emt 0:01:30]} 10. Be3 {[%emt 0:13:30]} Qxd4 {[%emt 0:15:30]} 11. Bxd4 {[%emt 0:01:30]} h6 {[%emt 0:04:30]} 12. O-O-O {[%emt 0:02:30]} Nb6 {[%emt 0:01:30]} 13. Ba2 {[%emt 0:01:30]} Be6 {[%emt 0:07:30]} 14. Bxe6 {[%emt 0:05:30]} fxe6 {[%emt 0:00:30]} 15. e5 {[%emt 0:00:30]} dxe5 {[%emt 0:00:30]} 16. Nxe5 {[%emt 0:04:30]} Nbd5 {[%emt 0:18:30]} 17. Nxd5 {[%emt 0:07:30]} cxd5 {[%emt 0:06:30]} 18. f3 {[%emt 0:03:30]} Rg8 {[%emt 0:13:30]} 19. Nd3 {[%emt 0:05:30]} Kf7 {[%emt 0:02:30]} 20. Ne5+ {[%emt 0:01:30]} Ke8 {[%emt 0:00:00]} 21. Nd3 {[%emt 0:00:00]} Kf7 {[%emt 0:04:16]} 22. Ne5+ {[%emt 0:00:00]} 1/2-1/2

[Event "8th Mersin Open 2024"]
[Site "Mersin"]
[Date "2024.11.13"]
[Round "5"]
[White "Uzdemir, Ali Poyraz"]
[Black "Zeynalli, Rashad"]
[Result "1-0"]
[ECO "C19"]
[WhiteElo "2081"]
[BlackElo "2300"]
[Annotator "RC"]
[PlyCount "97"]
[EventDate "2024.11.10"]
[EventType "swiss"]
[EventCountry "TUR"]
[SourceTitle "playchess.com"]
[Source "ChessBase"]
[SourceQuality "1"]
[TimeControl "5400+30"]

1. e4 {[%emt 0:01:00]} e6 {[%emt 0:01:00]} 2. d4 {[%emt 0:00:30]} d5 {[%emt 0:00:00]} 3. Nc3 {[%emt 0:00:00]} Bb4 {[%emt 0:01:00]} 4. e5 {[%emt 0:00:00]} c5 {[%emt 0:00:00]} 5. a3 {[%emt 0:00:00]} Bxc3+ {[%emt 0:00:00]} 6. bxc3 {[%emt 0:00:00]} Ne7 {[%emt 0:00:30]} 7. Nf3 {[%emt 0:00:30]} b6 {[%emt 0:00:00]} 8. Bg5 {[%emt 0:01:30]} Ba6 {[%emt 0:03:00]} 9. Bxa6 {[%emt 0:05:30]} Nxa6 {[%emt 0:00:30]} 10. Qe2 {[%emt 0:00:30]} Nb8 {[%emt 0:02:30]} 11. O-O {[%emt 0:08:30]} h6 {[%emt 0:03:30]} 12. Be3 {[%emt 0:22:30]} Qc7 {[%emt 0:06:30]} 13. Ne1 {[%emt 0:11:30]} Nd7 {[%emt 0:00:30]} 14. f4 {[%emt 0:00:30]} h5 {[%emt 0:05:30]} 15. Nf3 {[%emt 0:05:30]} Rc8 {[%emt 0:02:30]} 16. Nh4 {[%emt 0:05:30]} g6 {[%emt 0:06:30]} 17. f5 {[%emt 0:00:30]} gxf5 {[%emt 0:01:30]} 18. Rae1 {[%emt 0:03:30]} Ng6 {[%emt 0:03:30]} 19. Qf2 {[%emt 0:07:30]} Ndf8 {[%emt 0:05:30]} 20. Nxg6 {[%emt 0:04:30]} fxg6 {[%emt 0:01:30]} 21. dxc5 {[%emt 0:02:27]} bxc5 {[%emt 0:02:30]} 22. Qh4 {[%emt 0:00:58]} Nh7 {[%emt 0:03:30]} 23. h3 {[%emt 0:05:33]} O-O {[%emt 0:03:30]} 24. Qg3 {[%emt 0:01:00]} Qg7 {[%emt 0:01:30]} 25. h4 {[%emt 0:00:10]} Rfd8 {[%emt 0:03:30]} 26. Bf4 {[%emt 0:03:18]} Rb8 {[%emt 0:03:30]} 27. Rb1 {[%emt 0:00:07]} Rdc8 {[%emt 0:03:30]} 28. Qe3 {[%emt 0:00:23]} Qe7 {[%emt 0:02:30]} 29. g3 {[%emt 0:00:16]} Kf7 {[%emt 0:00:30]} 30. a4 {[%emt 0:03:56]} Rg8 {[%emt 0:02:30]} 31. Qf3 {[%emt 0:00:58]} Rb7 {[%emt 0:03:30]} 32. c4 {[%emt 0:00:15]} Rxb1 {[%emt 0:05:30]} 33. Rxb1 {[%emt 0:00:04]} Rd8 {[%emt 0:00:30]} 34. cxd5 {[%emt 0:01:13]} Rxd5 {[%emt 0:03:30]} 35. c4 {[%emt 0:00:06]} Rd7 {[%emt 0:02:30]} 36. Qa8 {[%emt 0:00:35]} Rd8 {[%emt 0:00:30]} 37. Qc6 {[%emt 0:00:39]} Nf8 {[%emt 0:04:30]} 38. Rb7 {[%emt 0:03:14]} Rd7 {[%emt 0:00:25]} 39. Rb8 {[%emt 0:00:45]} Rd8 {[%emt 0:03:20]} 40. Bg5 {[%emt 0:00:38]} Qe8 {[%emt 0:00:01]} 41. Qxe8+ {[%emt 0:00:44]} Rxe8 {[%emt 0:00:30]} 42. Rb7+ {[%emt 0:00:30]} Kg8 {[%emt 0:00:00]} 43. Rxa7 {[%emt 0:00:59]} Nh7 {[%emt 0:00:00]} 44. Be3 {[%emt 0:00:07]} Rc8 {[%emt 0:00:06]} 45. a5 {[%emt 0:00:27]} Nf8 {[%emt 0:00:47]} 46. a6 {[%emt 0:00:08]} Rc6 {[%emt 0:00:00]} 47. Bh6 {[%emt 0:00:55]} Rc8 {[%emt 0:00:19]} 48. Rb7 {[%emt 0:00:33]} Ra8 {[%emt 0:00:43]} 49. a7 {[%emt 0:00:06]} 1-0

[Event "8th Mersin Open 2024"]
[Site "Mersin"]
[Date "2024.11.13"]
[Round "5"]
[White "Saygin, Nurettin"]
[Black "Turker, Esat Tuna"]
[Result "1/2-1/2"]
[ECO "B40"]
[WhiteElo "2066"]
[BlackElo "2050"]
[Annotator "ChessBase"]
[PlyCount "218"]
[EventDate "2024.11.10"]
[EventType "swiss"]
[EventCountry "TUR"]
[SourceTitle "playchess.com"]
[Source "ChessBase"]
[SourceQuality "1"]
[TimeControl "5400+30"]

1. e4 {[%emt 0:01:00]} c5 {[%emt 0:02:00]} 2. Nf3 {[%emt 0:00:30]} e6 {[%emt 0:00:00]} 3. d4 {[%emt 0:00:30]} cxd4 {[%emt 0:00:00]} 4. Nxd4 {[%emt 0:00:30]} Nf6 {[%emt 0:00:30]} 5. Nc3 {[%emt 0:00:30]} Nc6 {[%emt 0:00:30]} 6. Nxc6 {[%emt 0:02:30]} bxc6 {[%emt 0:00:30]} 7. Bd3 {[%emt 0:00:00]} d5 {[%emt 0:01:30]} 8. O-O {[%emt 0:00:00]} Be7 {[%emt 0:00:00]} 9. Re1 {[%emt 0:02:30]} O-O {[%emt 0:03:00]} 10. e5 {[%emt 0:04:30]} Nd7 {[%emt 0:00:30]} 11. Qh5 {[%emt 0:01:30]} g6 {[%emt 0:01:30]} 12. Qh6 {[%emt 0:04:30]} a5 {[%emt 0:04:30]} 13. g3 {[%emt 0:02:30]} Re8 {[%emt 0:01:30]} 14. Rb1 {[%emt 0:04:30]} Ba6 {[%emt 0:11:30]} 15. Bxa6 {[%emt 0:01:30]} Rxa6 {[%emt 0:00:00]} 16. h4 {[%emt 0:03:30]} Bf8 {[%emt 0:02:00]} 17. Qd2 {[%emt 0:00:30]} Qc7 {[%emt 0:09:30]} 18. Qe2 {[%emt 0:01:30]} Rb6 {[%emt 0:01:30]} 19. h5 {[%emt 0:05:30]} Bg7 {[%emt 0:15:30]} 20. hxg6 {[%emt 0:02:30]} hxg6 {[%emt 0:03:30]} 21. f4 {[%emt 0:02:30]} f6 {[%emt 0:03:30]} 22. Be3 {[%emt 0:02:30]} Rbb8 {[%emt 0:00:30]} 23. exf6 {[%emt 0:00:30]} Bxf6 {[%emt 0:00:30]} 24. Bf2 {[%emt 0:00:30]} Kf7 {[%emt 0:03:30]} 25. Qf3 {[%emt 0:06:30]} e5 {[%emt 0:05:30]} 26. fxe5 {[%emt 0:02:30]} Nxe5 {[%emt 0:00:30]} 27. Qg2 {[%emt 0:02:30]} Nc4 {[%emt 0:02:30]} 28. Rxe8 {[%emt 0:05:30]} Rxe8 {[%emt 0:00:30]} 29. Bc5 {[%emt 0:03:30]} Qe5 {[%emt 0:05:30]} 30. Na4 {[%emt 0:06:30]} Kg7 {[%emt 0:05:17]} 31. c3 {[%emt 0:02:30]} Ne3 {[%emt 0:04:10]} 32. Qf3 {[%emt 0:04:30]} Nf5 {[%emt 0:00:57]} 33. Bf2 {[%emt 0:01:30]} Qe2 {[%emt 0:04:05]} 34. Qxe2 {[%emt 0:01:30]} Rxe2 {[%emt 0:00:04]} 35. Kf1 {[%emt 0:00:30]} Rc2 {[%emt 0:01:05]} 36. Re1 {[%emt 0:00:30]} Kf7 {[%emt 0:01:24]} 37. Re2 {[%emt 0:00:30]} Rc1+ {[%emt 0:00:24]} 38. Kg2 {[%emt 0:01:30]} Bd8 {[%emt 0:00:59]} 39. Nc5 {[%emt 0:00:30]} Bc7 {[%emt 0:05:04]} 40. Ne6 {[%emt 0:00:30]} Bd6 {[%emt 0:01:16]} 41. Nd8+ {[%emt 0:00:30]} Kf8 {[%emt 0:01:00]} 42. Nxc6 {[%emt 0:01:30]} a4 {[%emt 0:00:05]} 43. g4 {[%emt 0:00:30]} Ne7 {[%emt 0:03:04]} 44. Nd4 {[%emt 0:02:49]} a3 {[%emt 0:00:46]} 45. Nb5 {[%emt 0:04:24]} axb2 {[%emt 0:00:21]} 46. Rxb2 {[%emt 0:00:00]} Be5 {[%emt 0:00:32]} 47. Be3 {[%emt 0:02:56]} Re1 {[%emt 0:00:23]} 48. Kf3 {[%emt 0:03:12]} Rh1 {[%emt 0:00:55]} 49. Rf2 {[%emt 0:00:41]} Ke8 {[%emt 0:00:23]} 50. Bf4 {[%emt 0:01:34]} Bxf4 {[%emt 0:00:36]} 51. Kxf4 {[%emt 0:00:35]} Kd7 {[%emt 0:00:17]} 52. Kg5 {[%emt 0:00:00]} Rb1 {[%emt 0:00:54]} 53. Nd4 {[%emt 0:00:07]} Rc1 {[%emt 0:00:03]} 54. Nc2 {[%emt 0:00:34]} Rb1 {[%emt 0:00:21]} 55. Nb4 {[%emt 0:00:16]} Ke6 {[%emt 0:00:54]} 56. a4 {[%emt 0:01:39]} d4 {[%emt 0:00:24]} 57. Na2 {[%emt 0:00:27]} dxc3 {[%emt 0:00:20]} 58. Nxc3 {[%emt 0:00:08]} Rc1 {[%emt 0:00:28]} 59. Rf3 {[%emt 0:01:03]} Kd7 {[%emt 0:00:47]} 60. Re3 {[%emt 0:01:13]} Ra1 {[%emt 0:00:30]} 61. Ne4 {[%emt 0:02:48]} Kc6 {[%emt 0:00:14]} 62. Nf6 {[%emt 0:00:05]} Kd6 {[%emt 0:00:32]} 63. Re4 {[%emt 0:00:37]} Ra2 {[%emt 0:00:33]} 64. Nh7 {[%emt 0:00:47]} Rf2 {[%emt 0:00:32]} 65. Nf6 {[%emt 0:01:04]} Ra2 {[%emt 0:00:11]} 66. Rb4 {[%emt 0:01:06]} Ke6 {[%emt 0:00:28]} 67. Rf4 {[%emt 0:00:27]} Rc2 {[%emt 0:00:55]} 68. Nh7 {[%emt 0:00:19]} Rc5+ {[%emt 0:00:23]} 69. Kh6 {[%emt 0:00:28]} Nd5 {[%emt 0:00:35]} 70. Re4+ {[%emt 0:01:18]} Kd6 {[%emt 0:00:26]} 71. Kxg6 {[%emt 0:00:48]} Nc3 {[%emt 0:00:30]} 72. Rf4 {[%emt 0:00:30]} Nd5 {[%emt 0:00:30]} 73. Rf8 {[%emt 0:00:30]} Rc4 {[%emt 0:00:30]} 74. Nf6 {[%emt 0:00:30]} Rxa4 {[%emt 0:00:30]} 75. Rd8+ {[%emt 0:00:30]} Ke6 {[%emt 0:00:30]} 76. Nxd5 {[%emt 0:00:30]} Rxg4+ {[%emt 0:00:30]} 77. Kh5 {[%emt 0:02:03]} Rg1 {[%emt 0:00:37]} 78. Nf4+ {[%emt 0:00:30]} Ke5 {[%emt 0:00:30]} 79. Rf8 {[%emt 0:00:30]} Ra1 {[%emt 0:00:30]} 80. Kg4 {[%emt 0:00:30]} Rg1+ {[%emt 0:00:30]} 81. Kf3 {[%emt 0:00:00]} Ra1 {[%emt 0:00:22]} 82. Ke3 {[%emt 0:00:48]} Re1+ {[%emt 0:00:00]} 83. Ne2 {[%emt 0:00:06]} Ra1 {[%emt 0:00:20]} 84. Re8+ {[%emt 0:00:00]} Kd6 {[%emt 0:00:05]} 85. Kd2 {[%emt 0:00:00]} Kd7 {[%emt 0:00:02]} 86. Re5 {[%emt 0:00:18]} Kd6 {[%emt 0:00:09]} 87. Rh5 {[%emt 0:00:00]} Ra2+ {[%emt 0:00:33]} 88. Kd3 {[%emt 0:00:24]} Ra3+ {[%emt 0:00:23]} 89. Nc3 {[%emt 0:00:01]} Ra1 {[%emt 0:00:11]} 90. Kd4 {[%emt 0:00:00]} Ke6 {[%emt 0:01:03]} 91. Re5+ {[%emt 0:00:14]} Kd6 {[%emt 0:00:36]} 92. Ne4+ {[%emt 0:00:34]} Kc6 {[%emt 0:00:13]} 93. Rc5+ {[%emt 0:00:10]} Kb6 {[%emt 0:00:05]} 94. Rc8 {[%emt 0:00:29]} Rd1+ {[%emt 0:00:25]} 95. Ke5 {[%emt 0:00:33]} Re1 {[%emt 0:00:37]} 96. Kd5 {[%emt 0:00:53]} Rd1+ {[%emt 0:00:13]} 97. Kc4 {[%emt 0:00:00]} Rh1 {[%emt 0:01:52]} 98. Nc3 {[%emt 0:00:13]} Kb7 {[%emt 0:00:46]} 99. Rc5 {[%emt 0:00:16]} Rh6 {[%emt 0:00:32]} 100. Rb5+ {[%emt 0:00:36]} Kc6 {[%emt 0:00:47]} 101. Re5 {[%emt 0:00:25]} Rh1 {[%emt 0:00:39]} 102. Re6+ {[%emt 0:00:30]} Kd7 {[%emt 0:00:07]} 103. Ra6 {[%emt 0:00:00]} Rc1 {[%emt 0:00:31]} 104. Kd4 {[%emt 0:00:47]} Rh1 {[%emt 0:00:37]} 105. Ne4 {[%emt 0:00:36]} Kc7 {[%emt 0:00:32]} 106. Nc3 {[%emt 0:01:29]} Kd7 {[%emt 0:00:38]} 107. Ra7+ {[%emt 0:00:27]} Ke6 {[%emt 0:00:39]} 108. Ne2 {[%emt 0:00:15]} Rh4+ {[%emt 0:00:39]} 109. Ke3 {[%emt 0:00:30]} Kd5 {[%emt 0:00:35]} 1/2-1/2

[Event "8th Mersin Open 2024"]
[Site "Mersin"]
[Date "2024.11.13"]
[Round "5"]
[White "Tirpan, Ceren"]
[Black "Gurbanov, Ismayil"]
[Result "1/2-1/2"]
[ECO "A23"]
[WhiteElo "2053"]
[BlackElo "2261"]
[Annotator "RC"]
[PlyCount "95"]
[EventDate "2024.11.10"]
[EventType "swiss"]
[EventCountry "TUR"]
[SourceTitle "playchess.com"]
[Source "ChessBase"]
[SourceQuality "1"]
[TimeControl "5400+30"]

1. c4 {[%emt 0:01:00]} e5 {[%emt 0:12:00]} 2. g3 {[%emt 0:00:00]} Nf6 {[%emt 0:02:30]} 3. Bg2 {[%emt 0:00:00]} c6 {[%emt 0:00:00]} 4. d4 {[%emt 0:01:30]} exd4 {[%emt 0:00:00]} 5. Qxd4 {[%emt 0:00:30]} d5 {[%emt 0:00:00]} 6. Nc3 {[%emt 0:00:00]} dxc4 {[%emt 0:00:00]} 7. Qxc4 {[%emt 0:05:00]} Be6 {[%emt 0:00:30]} 8. Qa4 {[%emt 0:00:00]} Bc5 {[%emt 0:04:30]} 9. Nf3 {[%emt 0:00:00]} O-O {[%emt 0:00:30]} 10. O-O {[%emt 0:00:30]} Nbd7 {[%emt 0:00:30]} 11. Bf4 {[%emt 0:13:30]} Qe7 {[%emt 0:03:30]} 12. Rad1 {[%emt 0:08:30]} h6 {[%emt 0:05:30]} 13. Qc2 {[%emt 0:05:30]} Nd5 {[%emt 0:05:30]} 14. Bd2 {[%emt 0:14:30]} Rfe8 {[%emt 0:10:30]} 15. Rfe1 {[%emt 0:08:30]} Rad8 {[%emt 0:04:30]} 16. a3 {[%emt 0:00:30]} N7f6 {[%emt 0:04:30]} 17. e3 {[%emt 0:08:30]} Bg4 {[%emt 0:12:30]} 18. Nxd5 {[%emt 0:11:30]} Rxd5 {[%emt 0:01:30]} 19. Bc3 {[%emt 0:02:02]} Rf5 {[%emt 0:18:09]} 20. h3 {[%emt 0:10:36]} Bxf3 {[%emt 0:00:30]} 21. Qxf5 {[%emt 0:00:30]} Bxd1 {[%emt 0:00:30]} 22. Rxd1 {[%emt 0:00:30]} Bb6 {[%emt 0:00:30]} 23. a4 {[%emt 0:00:30]} Rd8 {[%emt 0:00:30]} 24. Rxd8+ {[%emt 0:00:30]} Bxd8 {[%emt 0:00:30]} 25. g4 {[%emt 0:00:30]} Qd7 {[%emt 0:00:30]} 26. Qf3 {[%emt 0:00:30]} Nd5 {[%emt 0:00:30]} 27. Bd4 {[%emt 0:00:30]} Bb6 {[%emt 0:00:30]} 28. Qe4 {[%emt 0:00:30]} Bxd4 {[%emt 0:00:30]} 29. Qxd4 {[%emt 0:00:30]} Nb6 {[%emt 0:00:19]} 30. Qf4 {[%emt 0:05:26]} Qd1+ {[%emt 0:01:39]} 31. Kh2 {[%emt 0:00:05]} Nc8 {[%emt 0:00:26]} 32. Qe4 {[%emt 0:01:35]} Qd6+ {[%emt 0:00:30]} 33. Kg1 {[%emt 0:00:00]} Ne7 {[%emt 0:00:00]} 34. Bf1 {[%emt 0:00:32]} a5 {[%emt 0:00:11]} 35. Bc4 {[%emt 0:00:39]} Kf8 {[%emt 0:00:53]} 36. Qf3 {[%emt 0:00:29]} Nd5 {[%emt 0:02:53]} 37. Qf5 {[%emt 0:00:26]} Qe6 {[%emt 0:03:27]} 38. Qd3 {[%emt 0:00:51]} Qd7 {[%emt 0:00:08]} 39. Bxd5 {[%emt 0:01:32]} cxd5 {[%emt 0:00:21]} 40. Qa3+ {[%emt 0:00:00]} Qe7 {[%emt 0:00:37]} 41. Qc3 {[%emt 0:00:00]} b6 {[%emt 0:01:23]} 42. Qc8+ {[%emt 0:00:46]} Qe8 {[%emt 0:00:00]} 43. Qc7 {[%emt 0:00:12]} Qxa4 {[%emt 0:01:13]} 44. Qxb6 {[%emt 0:00:06]} Ke7 {[%emt 0:00:33]} 45. Qc7+ {[%emt 0:00:50]} Ke6 {[%emt 0:01:55]} 46. Qc8+ {[%emt 0:00:30]} Ke7 {[%emt 0:00:00]} 47. Qc7+ {[%emt 0:00:07]} Ke6 {[%emt 0:00:00]} 48. Qc8+ {[%emt 0:00:10]} 1/2-1/2

[Event "8th Mersin Open 2024"]
[Site "Mersin"]
[Date "2024.11.13"]
[Round "5"]
[White "Mahdavi, Armin"]
[Black "Cheng, Bindi"]
[Result "1/2-1/2"]
[ECO "B01"]
[WhiteElo "2038"]
[BlackElo "2368"]
[Annotator "RC"]
[PlyCount "86"]
[EventDate "2024.11.10"]
[EventType "swiss"]
[EventCountry "TUR"]
[SourceTitle "playchess.com"]
[Source "ChessBase"]
[SourceQuality "1"]
[TimeControl "5400+30"]

1. e4 {[%emt 0:01:00]} d5 {[%emt 0:01:00]} 2. exd5 {[%emt 0:00:30]} Nf6 {[%emt 0:00:00]} 3. d4 {[%emt 0:01:30]} Bg4 {[%emt 0:00:00]} 4. Be2 {[%emt 0:06:30]} Bxe2 {[%emt 0:02:30]} 5. Qxe2 {[%emt 0:00:30]} Qxd5 {[%emt 0:00:30]} 6. Nf3 {[%emt 0:00:30]} Nc6 {[%emt 0:00:00]} 7. O-O {[%emt 0:01:30]} O-O-O {[%emt 0:00:00]} 8. Be3 {[%emt 0:07:30]} e6 {[%emt 0:03:30]} 9. Nc3 {[%emt 0:03:30]} Qf5 {[%emt 0:02:30]} 10. Rad1 {[%emt 0:04:30]} Bb4 {[%emt 0:00:30]} 11. Rd3 {[%emt 0:05:30]} Bd6 {[%emt 0:15:30]} 12. Nh4 {[%emt 0:04:30]} Qa5 {[%emt 0:02:30]} 13. a3 {[%emt 0:02:30]} Nd5 {[%emt 0:02:30]} 14. b4 {[%emt 0:00:30]} Nxc3 {[%emt 0:00:30]} 15. Rxc3 {[%emt 0:00:30]} Qd5 {[%emt 0:00:30]} 16. Nf3 {[%emt 0:00:30]} e5 {[%emt 0:00:30]} 17. dxe5 {[%emt 0:00:30]} Nxe5 {[%emt 0:00:30]} 18. Nd4 {[%emt 0:00:30]} h5 {[%emt 0:00:30]} 19. Qb5 {[%emt 0:00:30]} Ng4 {[%emt 0:00:30]} 20. h3 {[%emt 0:00:30]} Bh2+ {[%emt 0:00:30]} 21. Kh1 {[%emt 0:00:30]} Be5 {[%emt 0:43:30]} 22. Rc5 {[%emt 0:30:30]} Qe4 {[%emt 0:00:30]} 23. Nf3 {[%emt 0:00:30]} f6 {[%emt 0:09:05]} 24. Rc4 {[%emt 0:04:30]} a6 {[%emt 0:06:35]} 25. Qc5 {[%emt 0:05:16]} Qd5 {[%emt 0:00:34]} 26. Nxe5 {[%emt 0:00:35]} Qxc5 {[%emt 0:01:27]} 27. Rxc5 {[%emt 0:00:30]} Nxe5 {[%emt 0:00:00]} 28. Bf4 {[%emt 0:00:59]} b6 {[%emt 0:00:47]} 29. Rc3 {[%emt 0:00:09]} Rd5 {[%emt 0:00:00]} 30. Re1 {[%emt 0:00:59]} Rhd8 {[%emt 0:00:25]} 31. Bxe5 {[%emt 0:02:59]} fxe5 {[%emt 0:00:30]} 32. Kg1 {[%emt 0:02:20]} R8d6 {[%emt 0:01:29]} 33. Rce3 {[%emt 0:02:24]} Rd2 {[%emt 0:00:30]} 34. Rxe5 {[%emt 0:00:30]} Rxc2 {[%emt 0:00:30]} 35. Rxh5 {[%emt 0:00:30]} Rdd2 {[%emt 0:00:30]} 36. Rf5 {[%emt 0:00:30]} Rc3 {[%emt 0:00:30]} 37. Re7 {[%emt 0:00:13]} Rxa3 {[%emt 0:01:15]} 38. Rxg7 {[%emt 0:00:30]} Rd5 {[%emt 0:00:52]} 39. Rfg5 {[%emt 0:00:30]} Rd2 {[%emt 0:00:30]} 40. h4 {[%emt 0:00:30]} Rb3 {[%emt 0:00:30]} 41. h5 {[%emt 0:00:30]} Rxb4 {[%emt 0:00:30]} 42. g4 {[%emt 0:00:30]} Rbd4 {[%emt 0:00:30]} 43. f3 {[%emt 0:00:30]} a5 {[%emt 0:00:30]} 1/2-1/2

[Event "8th Mersin Open 2024"]
[Site "Mersin"]
[Date "2024.11.13"]
[Round "5"]
[White "Karabulut, Etka"]
[Black "Atis, Hasan"]
[Result "1-0"]
[ECO "D85"]
[WhiteElo "2024"]
[BlackElo "2167"]
[Annotator "RC"]
[PlyCount "79"]
[EventDate "2024.11.10"]
[EventType "swiss"]
[EventCountry "TUR"]
[SourceTitle "playchess.com"]
[Source "ChessBase"]
[SourceQuality "1"]
[TimeControl "5400+30"]

1. d4 {[%emt 0:01:00]} Nf6 {[%emt 0:02:00]} 2. c4 {[%emt 0:00:30]} g6 {[%emt 0:00:00]} 3. Nc3 {[%emt 0:00:00]} d5 {[%emt 0:00:00]} 4. cxd5 {[%emt 0:00:00]} Nxd5 {[%emt 0:00:30]} 5. e4 {[%emt 0:00:00]} Nxc3 {[%emt 0:00:30]} 6. bxc3 {[%emt 0:00:00]} Bg7 {[%emt 0:00:00]} 7. h3 {[%emt 0:00:00]} c5 {[%emt 0:00:00]} 8. Nf3 {[%emt 0:00:00]} O-O {[%emt 0:01:30]} 9. Be2 {[%emt 0:00:30]} Qc7 {[%emt 0:10:30]} 10. O-O {[%emt 0:03:30]} Rd8 {[%emt 0:00:00]} 11. Be3 {[%emt 0:00:00]} b6 {[%emt 0:01:00]} 12. Qb3 {[%emt 0:05:00]} Ba6 {[%emt 0:15:30]} 13. Bxa6 {[%emt 0:08:30]} Nxa6 {[%emt 0:00:30]} 14. Qc4 {[%emt 0:00:30]} Qb7 {[%emt 0:01:30]} 15. Rab1 {[%emt 0:01:30]} cxd4 {[%emt 0:04:30]} 16. cxd4 {[%emt 0:03:30]} Rac8 {[%emt 0:00:30]} 17. Qa4 {[%emt 0:00:00]} Nb8 {[%emt 0:02:30]} 18. d5 {[%emt 0:05:00]} Qa6 {[%emt 0:10:30]} 19. Qb4 {[%emt 0:12:30]} Re8 {[%emt 0:24:30]} 20. Rbc1 {[%emt 0:07:30]} Bf8 {[%emt 0:00:00]} 21. Qb3 {[%emt 0:00:30]} Nd7 {[%emt 0:00:00]} 22. Rc6 {[%emt 0:04:30]} Nb8 {[%emt 0:04:30]} 23. Rxc8 {[%emt 0:08:30]} Rxc8 {[%emt 0:00:30]} 24. Ne5 {[%emt 0:01:30]} Bg7 {[%emt 0:03:59]} 25. f4 {[%emt 0:00:30]} Qe2 {[%emt 0:01:51]} 26. d6 {[%emt 0:06:30]} Bxe5 {[%emt 0:00:36]} 27. fxe5 {[%emt 0:00:00]} e6 {[%emt 0:00:00]} 28. Bh6 {[%emt 0:06:00]} Nd7 {[%emt 0:06:14]} 29. Qg3 {[%emt 0:01:30]} Qxe4 {[%emt 0:08:25]} 30. Qg5 {[%emt 0:00:30]} Qd4+ {[%emt 0:00:08]} 31. Kh1 {[%emt 0:00:30]} f6 {[%emt 0:00:10]} 32. Rxf6 {[%emt 0:01:30]} Qxe5 {[%emt 0:03:31]} 33. Qxe5 {[%emt 0:01:30]} Nxe5 {[%emt 0:00:30]} 34. Rxe6 {[%emt 0:00:30]} Rc5 {[%emt 0:00:30]} 35. Bf4 {[%emt 0:00:30]} Nf7 {[%emt 0:00:30]} 36. Re7 {[%emt 0:03:30]} Rf5 {[%emt 0:01:04]} 37. d7 {[%emt 0:00:30]} Rxf4 {[%emt 0:00:00]} 38. Rxf7 {[%emt 0:00:30]} Rd4 {[%emt 0:00:23]} 39. Re7 {[%emt 0:00:00]} Kf8 {[%emt 0:00:12]} 40. Re8+ {[%emt 0:00:00]} 1-0